bitfinex/quotes_BTCUSD_20210101
["timestamp","ask_amount","ask_price","bid_price","bid_amount"]
[1609508809669,0.00133455,29485.0,29483.0,1.22919651]
[1609508810775,0.00133455,29485.0,29483.0,1.92919651]
[1609508811598,0.00133455,29485.0,29483.0,1.86089651]
[1609508812902,0.00133455,29485.0,29483.0,2.66089651]
[1609508813403,0.00133455,29485.0,29483.0,1.86089651]
[1609508813803,0.00101552,29484.0,29483.0,1.86089651]
[1609508817022,0.00101552,29484.0,29483.0,1.23606965]
[1609508817819,0.00101552,29484.0,29483.0,2.38735965]
[1609508818018,0.00041552,29484.0,29483.0,2.38735965]
[1609508818236,0.00035407,29489.0,29484.0,3.900427]
[1609508818529,0.00035407,29489.0,29488.0,0.05041]
[1609508818724,1.08943517,29489.0,29488.0,0.05041]
[1609508819027,0.13943517,29489.0,29488.0,0.05041]
[1609508820724,0.13943517,29489.0,29488.0,0.72521]
[1609508821221,0.13943517,29489.0,29488.0,0.85021]
[1609508822924,0.13943517,29489.0,29488.0,0.71521]
[1609508823825,0.13943517,29489.0,29488.0,0.67521]
[1609508825930,0.00035407,29489.0,29488.0,0.67521]
[1609508826331,0.12357263,29489.0,29488.0,0.67521]
[1609508826549,0.12357263,29489.0,29488.0,0.80021]
[1609508827145,0.12357263,29489.0,29488.0,0.82880575]
[1609508827345,0.12357263,29489.0,29488.0,0.69380575]
[1609508828649,0.00035407,29489.0,29488.0,0.69380575]
[1609508828853,0.12368123,29489.0,29488.0,0.69380575]
[1609508829061,1.16037123,29489.0,29488.0,0.02859575]
[1609508829267,1.71334223,29489.0,29488.0,0.02859575]
[1609508829662,1.83694493,29489.0,29488.0,5.75e-06]
[1609508829862,2.35694493,29489.0,29488.0,5.75e-06]
[1609508830055,2.23334223,29489.0,29488.0,5.75e-06]
[1609508831259,2.82654224,29489.0,29488.0,5.75e-06]
[1609508832380,2.57234223,29489.0,29488.0,0.01430105]
[1609508832681,4.82234223,29489.0,29488.0,0.01430105]
[1609508832882,4.82234223,29489.0,29488.0,1.43e-06]
[1609508833182,5.16501271,29489.0,29488.0,1.43e-06]
[1609508833685,4.82601271,29489.0,29488.0,1.43e-06]
[1609508833887,0.97,29483.0,29464.0,0.6703]
[1609508834093,0.362971,29471.0,29464.0,0.6703]
[1609508834388,0.33180302,29470.0,29465.0,0.4641]
[1609508834587,0.362971,29469.0,29465.0,0.4491]
[1609508835190,2.612971,29466.0,29465.0,0.4491]
[1609508835386,3.364401,29466.0,29465.0,0.4491]
[1609508835580,1.114401,29466.0,29465.0,0.4491]
[1609508836461,0.579401,29466.0,29465.0,0.4491]
[1609508837646,1.279401,29466.0,29465.0,0.4491]
[1609508837869,1.279401,29466.0,29465.0,0.45986053]
[1609508838074,0.784401,29466.0,29465.0,0.45986053]
[1609508838471,1.484401,29466.0,29465.0,0.45986053]
[1609508839270,2.484401,29466.0,29465.0,0.45886053]
[1609508839474,0.784401,29466.0,29465.0,0.45886053]
[1609508839680,0.24163,29466.0,29465.0,0.48411253]
[1609508839890,0.00064439,29468.0,29465.0,0.48411253]
[1609508840079,0.00064439,29468.0,29466.0,0.025249]
[1609508840473,0.00024653,29469.0,29466.0,0.025249]
[1609508840673,0.00024653,29469.0,29466.0,0.719449]
[1609508841083,0.00064439,29471.0,29470.0,0.00320347]
[1609508841277,0.362981,29471.0,29470.0,0.00320347]
[1609508841495,0.1445,29472.0,29470.0,0.02843947]
[1609508841699,0.14514439,29472.0,29470.0,0.02843947]
[1609508841906,0.14514439,29472.0,29471.0,0.025234]
[1609508842199,0.1445,29472.0,29471.0,2.775234]
[1609508843097,0.1445,29472.0,29471.0,2.760234]
[1609508843293,0.1445,29472.0,29471.0,2.960234]
[1609508846498,0.1445,29472.0,29471.0,3.095234]
[1609508847131,0.00064439,29486.0,29471.0,3.57856197]
[1609508847332,0.00064439,29486.0,29479.0,0.44204149]
[1609508847645,0.80629782,29489.0,29485.0,0.19151976]
[1609508847833,0.80629782,29489.0,29488.0,0.010193]
[1609508848731,0.80629782,29489.0,29488.0,0.02094515]
[1609508851132,0.80629782,29489.0,29488.0,0.01075215]
[1609508851600,0.79629782,29489.0,29486.0,0.44505215]
[1609508851800,0.79660669,29489.0,29487.0,0.010191]
[1609508852906,0.79660669,29489.0,29486.0,0.44505215]
[1609508853109,0.00030887,29488.0,29486.0,0.44505215]
[1609508853310,0.537972,29487.0,29486.0,0.44505215]
[1609508853607,0.175,29487.0,29486.0,0.44505215]
[1609508853810,0.537972,29487.0,29486.0,0.44505215]
[1609508854118,0.00030887,29488.0,29486.0,0.45524815]
[1609508854313,0.79660669,29489.0,29487.0,0.010194]
[1609508854612,0.79660669,29489.0,29488.0,0.010192]
[1609508855012,0.79629782,29489.0,29488.0,0.010192]
[1609508857761,0.054508,29488.0,29486.0,0.44505215]
[1609508858458,0.05481687,29488.0,29486.0,0.44505215]
[1609508863783,0.05481687,29488.0,29486.0,0.43005215]
[1609508864281,0.05481687,29488.0,29486.0,0.42505215]
[1609508865484,0.05481687,29488.0,29486.0,0.39505215]
[1609508867224,0.05481687,29488.0,29487.0,0.635]
[1609508867425,0.054508,29488.0,29487.0,0.635]
[1609508867733,0.054508,29488.0,29487.0,0.77]
[1609508868233,0.054508,29488.0,29487.0,3.4681521]
[1609508868633,0.054508,29488.0,29487.0,1.1181521]
[1609508868836,0.054508,29488.0,29487.0,0.77]
[1609508869230,0.054508,29488.0,29487.0,1.92]
[1609508869431,0.054508,29488.0,29487.0,2.2681521]
[1609508869635,0.054508,29488.0,29487.0,1.1181521]
[1609508869832,0.054508,29488.0,29487.0,1.278]
[1609508870938,0.054508,29488.0,29487.0,1.6261521]
[1609508871141,0.054508,29488.0,29487.0,5.2761521]
[1609508872560,0.054508,29488.0,29487.0,1.6261521]
[1609508872754,0.054508,29488.0,29487.0,1.278]
[1609508873159,0.054508,29488.0,29487.0,3.728]
[1609508873456,0.054508,29488.0,29487.0,4.0761521]
[1609508874955,0.054508,29488.0,29487.0,1.6261521]
[1609508875156,0.054508,29488.0,29487.0,2.7261521]
[1609508876255,0.054508,29488.0,29487.0,4.3261521]
[1609508876755,0.054508,29488.0,29487.0,2.7261521]
[1609508877881,0.054508,29488.0,29487.0,2.7211521]
[1609508878080,0.054508,29488.0,29487.0,3.4711521]
[1609508878382,0.054508,29488.0,29487.0,2.7211521]
[1609508879181,0.054508,29488.0,29487.0,4.1211521]
[1609508879385,0.054508,29488.0,29487.0,2.7211521]
[1609508880088,0.054508,29488.0,29487.0,3.9211521]
[1609508880485,0.054508,29488.0,29487.0,2.7211521]
[1609508880684,0.054508,29488.0,29487.0,2.378]
[1609508880890,0.054508,29488.0,29487.0,2.376]
[1609508881088,0.054508,29488.0,29487.0,3.176]
[1609508881290,0.054508,29488.0,29487.0,3.5191521]
[1609508882059,0.054508,29488.0,29487.0,4.4191521]
[1609508882259,0.054508,29488.0,29487.0,3.5191521]
[1609508883084,0.054508,29488.0,29487.0,2.7191521]
[1609508883979,0.054508,29488.0,29487.0,3.6691521]
[1609508884184,0.054508,29488.0,29487.0,2.7191521]
[1609508884979,0.054508,29488.0,29487.0,3.7191521]
[1609508885480,0.054508,29488.0,29487.0,2.7191521]
[1609508885781,0.049508,29488.0,29487.0,2.376]
[1609508886384,0.049508,29488.0,29487.0,3.135]
[1609508886616,0.049508,29488.0,29487.0,2.035]
[1609508886812,0.049508,29488.0,29487.0,2.03]
[1609508887015,0.049508,29488.0,29487.0,2.83]
[1609508887217,0.049508,29488.0,29487.0,2.3431521]
[1609508887417,0.049508,29488.0,29487.0,2.03]
[1609508888016,0.049508,29488.0,29487.0,3.5431521]
[1609508888520,0.79544375,29489.0,29488.0,5.1]
[1609508888719,0.79513488,29489.0,29488.0,4.6981521]
[1609508888919,0.79513488,29489.0,29488.0,0.4481521]
[1609508889120,0.79513488,29489.0,29488.0,0.135]
[1609508889919,0.79513488,29489.0,29488.0,0.985]
[1609508890121,0.79513488,29489.0,29488.0,1.2981521]
[1609508890353,0.92672526,29489.0,29488.0,1.2981521]
[1609508890751,0.79513488,29489.0,29488.0,1.2981521]
[1609508890951,0.79513488,29489.0,29488.0,2.2481521]
[1609508891548,0.79513488,29489.0,29488.0,1.2981521]
[1609508891953,0.79513488,29489.0,29488.0,2.2481521]
[1609508892351,0.79513488,29489.0,29488.0,1.2981521]
[1609508892551,0.79513488,29489.0,29488.0,0.4481521]
[1609508892755,0.79513488,29489.0,29488.0,0.135]
[1609508893852,0.79513488,29489.0,29488.0,1.535]
[1609508894056,0.79513488,29489.0,29488.0,1.8481521]
[1609508895155,0.79513488,29489.0,29488.0,0.14575223]
[1609508895853,0.79513488,29489.0,29488.0,1.79575223]
[1609508896074,0.79513488,29489.0,29488.0,2.10890433]
[1609508896276,0.92680862,29489.0,29488.0,2.10890433]
[1609508896722,0.79513488,29489.0,29488.0,2.10890433]
[1609508897824,0.92632111,29489.0,29488.0,0.45890433]
[1609508898028,0.92632111,29489.0,29488.0,2.44575223]
[1609508898029,0.92132111,29489.0,29488.0,2.44575223]
[1609508898231,0.92132111,29489.0,29488.0,2.75890433]
[1609508898728,0.92132111,29489.0,29488.0,0.14575223]
[1609508898927,0.92132111,29489.0,29488.0,1.19575223]
[1609508899134,0.92132111,29489.0,29488.0,1.50890433]
[1609508900933,0.91632111,29489.0,29488.0,3.55793814]
[1609508901754,0.91632111,29489.0,29488.0,2.60793814]
[1609508902152,0.91632111,29489.0,29488.0,1.50793814]
[1609508904258,0.91632111,29489.0,29488.0,0.45793814]
[1609508904458,0.91632111,29489.0,29488.0,0.14575223]
[1609508905357,0.91290558,29489.0,29488.0,2.39575223]
[1609508905759,0.91290558,29489.0,29488.0,2.70793814]
[1609508906359,0.91290558,29489.0,29488.0,0.45793814]
[1609508906562,0.91290558,29489.0,29488.0,0.01075223]
[1609508907675,0.91290558,29489.0,29488.0,0.91075223]
[1609508907879,0.91290558,29489.0,29488.0,1.21293814]
[1609508908380,0.91290558,29489.0,29488.0,1.31293814]
[1609508908581,0.91290558,29489.0,29488.0,1.51293814]
[1609508908780,0.91290558,29489.0,29488.0,3.34793814]
[1609508909280,0.91290558,29489.0,29488.0,1.64793814]
[1609508909481,0.91290558,29489.0,29488.0,1.58794829]
[1609508910183,0.91290558,29489.0,29488.0,2.58794829]
[1609508910380,0.91290558,29489.0,29488.0,2.52794829]
[1609508911207,0.91290558,29489.0,29488.0,2.32794829]
[1609508911385,0.91290558,29489.0,29488.0,2.19294829]
[1609508911665,0.90790558,29489.0,29488.0,2.19294829]
[1609508912467,0.90790558,29489.0,29488.0,1.29294829]
[1609508915478,0.0836093,29490.0,29489.0,1.12209442]
[1609508915779,0.08330043,29490.0,29489.0,1.12209442]
[1609508916577,0.0008,29490.0,29489.0,1.12209442]
[1609508918413,0.0008,29490.0,29489.0,1.22209442]
[1609508919609,0.0008,29490.0,29489.0,1.24162913]
[1609508920213,0.0008,29490.0,29489.0,1.14162913]
[1609508920817,0.0008,29490.0,29489.0,1.15238103]
[1609508921010,0.7166958,29490.0,29489.0,1.15238103]
[1609508921218,0.84045046,29490.0,29489.0,1.15238103]
[1609508921513,0.84045046,29490.0,29489.0,1.25238103]
[1609508921715,0.7166958,29490.0,29489.0,1.25238103]
[1609508922336,0.7166958,29490.0,29489.0,1.15238103]
[1609508922535,1.3456348,29490.0,29489.0,1.15238103]
[1609508922740,1.4693645,29490.0,29489.0,1.15238103]
[1609508923032,1.7143645,29490.0,29489.0,1.15238103]
[1609508924039,1.5906348,29490.0,29489.0,1.15238103]
[1609508924239,1.71433234,29490.0,29489.0,1.15238103]
[1609508925031,1.64397234,29490.0,29489.0,1.15238103]
[1609508925831,1.28100334,29490.0,29489.0,1.15238103]
[1609508926344,1.1573058,29490.0,29489.0,1.15238103]
[1609508927382,1.2257458,29490.0,29489.0,1.15238103]
[1609508927991,1.2257458,29490.0,29489.0,1.25238103]
[1609508928589,1.07534382,29490.0,29489.0,1.25238103]
[1609508928794,0.9516958,29490.0,29489.0,1.15238103]
[1609508928993,0.9516958,29490.0,29489.0,1.25238103]
[1609508929591,0.9516958,29490.0,29489.0,1.15238103]
[1609508929995,0.9516958,29490.0,29489.0,1.25238103]
[1609508930296,0.9466958,29490.0,29489.0,1.25238103]
[1609508930695,1.07458745,29490.0,29489.0,1.25238103]
[1609508932218,1.07438745,29490.0,29489.0,1.76048103]
[1609508932418,1.07438745,29490.0,29489.0,3.96048103]
[1609508932419,1.07358745,29490.0,29489.0,3.96048103]
[1609508932626,1.07358745,29490.0,29489.0,6.10915709]
[1609508932627,0.82778745,29490.0,29489.0,6.10915709]
[1609508933218,0.82778745,29490.0,29489.0,5.10915709]
[1609508933414,0.82778745,29490.0,29489.0,6.10915709]
[1609508933624,0.82778745,29490.0,29489.0,5.10915709]
[1609508933817,0.82778745,29490.0,29489.0,6.10915709]
[1609508934025,0.70607538,29490.0,29489.0,6.10915709]
[1609508934220,0.70107538,29490.0,29489.0,5.65915709]
[1609508936919,0.69930523,29490.0,29489.0,4.40915709]
[1609508937846,0.69821523,29490.0,29489.0,4.40915709]
[1609508938646,0.69821523,29490.0,29489.0,2.20915709]
[1609508939446,0.69821523,29490.0,29489.0,3.75915709]
[1609508940350,0.6940957,29490.0,29489.0,3.75915709]
[1609508940649,0.69099291,29490.0,29489.0,5.85915709]
[1609508940848,0.69099291,29490.0,29489.0,3.75915709]
[1609508941449,0.69099291,29490.0,29489.0,3.75415709]
[1609508943328,0.69099291,29490.0,29489.0,4.75415709]
[1609508943928,0.69099291,29490.0,29489.0,3.75415709]
[1609508944128,0.69099291,29490.0,29489.0,3.70415709]
[1609508946238,0.69511097,29490.0,29489.0,3.70415709]
[1609508947455,0.69511097,29490.0,29489.0,4.00415709]
[1609508947658,0.69099291,29490.0,29489.0,4.00415709]
[1609508947858,0.69511056,29490.0,29489.0,4.00415709]
[1609508948159,0.69099291,29490.0,29489.0,4.00415709]
[1609508948356,0.69099291,29490.0,29489.0,5.40415709]
[1609508948556,0.69099291,29490.0,29489.0,4.00415709]
[1609508948772,0.69099291,29490.0,29489.0,5.00415709]
[1609508949159,0.69099291,29490.0,29489.0,4.00415709]
[1609508950963,0.69099291,29490.0,29489.0,2.45415709]
[1609508951165,0.69099291,29490.0,29489.0,2.02267709]
[1609508951470,0.69099291,29490.0,29489.0,1.88767709]
[1609508951869,0.69099291,29490.0,29489.0,1.76048103]
[1609508953291,0.69099291,29490.0,29489.0,1.88767709]
[1609508954094,0.69099291,29490.0,29489.0,2.09548103]
[1609508954286,0.69099291,29490.0,29489.0,2.53767709]
[1609508954586,0.69099291,29490.0,29489.0,2.08767709]
[1609508954784,0.69099291,29490.0,29489.0,1.88767709]
[1609508955184,0.69099291,29490.0,29489.0,2.83767709]
[1609508955392,0.69716888,29490.0,29489.0,3.09324709]
[1609508955688,0.69716888,29490.0,29489.0,2.27824709]
[1609508956287,0.69716888,29490.0,29489.0,3.27824709]
[1609508956490,0.69099291,29490.0,29489.0,3.18946709]
[1609508956757,0.69099291,29490.0,29489.0,3.06227103]
[1609508956961,0.69099291,29490.0,29489.0,2.89548103]
[1609508957159,0.69099291,29490.0,29489.0,2.76048103]
[1609508957855,0.69099291,29490.0,29489.0,2.88767709]
[1609508958265,0.69099291,29490.0,29489.0,3.24213709]
[1609508958467,0.82615505,29490.0,29489.0,3.37713709]
[1609508958963,0.69099291,29490.0,29489.0,3.37713709]
[1609508959166,0.82617494,29490.0,29489.0,3.37713709]
[1609508959366,0.82617494,29490.0,29489.0,3.24994103]
[1609508959769,0.82617494,29490.0,29489.0,2.89548103]
[1609508960764,0.82596635,29490.0,29489.0,2.89548103]
[1609508960968,0.82596635,29490.0,29489.0,2.76048103]
[1609508962006,0.90842332,29490.0,29489.0,2.88767709]
[1609508962602,1.04342332,29490.0,29489.0,2.88767709]
[1609508962807,0.96096635,29490.0,29489.0,2.76048103]
[1609508963509,0.96096635,29490.0,29489.0,2.66048103]
[1609508964205,0.96096635,29490.0,29489.0,2.15238103]
[1609508964408,1.0846639,29490.0,29489.0,2.15238103]
[1609508965007,0.96096635,29490.0,29489.0,2.15238103]
[1609508965915,1.08462034,29490.0,29489.0,2.15238103]
[1609508966406,1.07962034,29490.0,29489.0,2.15238103]
[1609508966609,0.95596635,29490.0,29489.0,2.15238103]
[1609508969923,1.03837958,29490.0,29489.0,2.15238103]
[1609508971125,1.03837958,29490.0,29489.0,2.25238103]
[1609508971328,1.03837958,29490.0,29489.0,2.15238103]
[1609508972099,1.03837958,29490.0,29489.0,2.25238103]
[1609508973109,1.03837958,29490.0,29489.0,2.15238103]
[1609508973414,1.03837958,29490.0,29489.0,2.25238103]
[1609508973615,1.03837958,29490.0,29489.0,2.15238103]
[1609508974413,1.03837958,29490.0,29489.0,2.25238103]
[1609508974714,1.03837958,29490.0,29489.0,2.15238103]
[1609508975919,1.21114958,29490.0,29489.0,2.15238103]
[1609508976221,1.21114958,29490.0,29489.0,2.25238103]
[1609508976845,1.21114958,29490.0,29489.0,2.15238103]
[1609508977046,4.17411858,29490.0,29489.0,2.15238103]
[1609508977247,4.87224858,29490.0,29489.0,2.15238103]
[1609508977551,4.91346116,29490.0,29489.0,2.15238103]
[1609508978148,5.16223382,29490.0,29489.0,2.15238103]
[1609508978648,5.49186204,29490.0,29489.0,2.15238103]
[1609508978959,5.16223382,29490.0,29489.0,2.15238103]
[1609508979146,5.30746383,29490.0,29489.0,2.15238103]
[1609508979343,5.23830383,29490.0,29489.0,2.15238103]
[1609508979747,4.78410382,29490.0,29489.0,2.15238103]
[1609508979951,2.34133382,29490.0,29489.0,2.15238103]
[1609508980347,2.86133382,29490.0,29489.0,2.15238103]
[1609508980549,2.48893535,29490.0,29489.0,2.15238103]
[1609508980948,3.23893535,29490.0,29489.0,2.15238103]
[1609508981350,3.61084562,29490.0,29489.0,2.15238103]
[1609508981649,3.81084562,29490.0,29489.0,2.15238103]
[1609508981853,4.81084562,29490.0,29489.0,2.15238103]
[1609508983270,6.81084562,29490.0,29489.0,2.15238103]
[1609508983669,6.81084562,29490.0,29489.0,1.03028661]
[1609508984669,6.81084562,29490.0,29489.0,1.01357039]
[1609508985766,5.81084562,29490.0,29489.0,1.01357039]
[1609508988740,5.06084562,29490.0,29489.0,1.01357039]
[1609508988942,4.86084562,29490.0,29489.0,1.01357039]
[1609508989845,3.69084562,29490.0,29489.0,1.01357039]
[1609508991045,4.21084562,29490.0,29489.0,1.01357039]
[1609508991746,3.69084562,29490.0,29489.0,1.01357039]
[1609508992174,3.89084562,29490.0,29489.0,1.01357039]
[1609508992371,4.31084562,29490.0,29489.0,1.01357039]
[1609508993068,3.69084562,29490.0,29489.0,1.01357039]
[1609508993472,4.21084562,29490.0,29489.0,1.01357039]
[1609508993770,4.31084562,29490.0,29489.0,1.01357039]
[1609508994171,4.21084562,29490.0,29489.0,1.01357039]
[1609508995875,4.51084562,29490.0,29489.0,1.01357039]
[1609508996276,4.21084562,29490.0,29489.0,1.01357039]
[1609508997281,3.69084562,29490.0,29489.0,1.01357039]
[1609508998096,4.31084562,29490.0,29489.0,1.01357039]
[1609508998696,4.21084562,29490.0,29489.0,1.01357039]
[1609508999294,3.21084562,29490.0,29489.0,1.01357039]
[1609508999794,2.83893535,29490.0,29489.0,1.01357039]
[1609509000694,4.13893535,29490.0,29489.0,1.01357039]
[1609509000893,2.83893535,29490.0,29489.0,1.01357039]
[1609509001097,3.21723119,29490.0,29489.0,1.01357039]
[1609509001300,2.83893535,29490.0,29489.0,1.01357039]
[1609509001865,2.31893535,29490.0,29489.0,1.01357039]
[1609509002467,1.31893535,29490.0,29489.0,1.01357039]
[1609509003995,0.95596635,29490.0,29489.0,1.01357039]
[1609509004183,0.95596635,29490.0,29489.0,1.11357039]
[1609509004586,0.95596635,29490.0,29489.0,1.01357039]
[1609509004783,0.95596635,29490.0,29489.0,1.80677039]
[1609509005080,0.95596635,29490.0,29489.0,1.70677039]
[1609509011206,0.82096635,29490.0,29489.0,1.70677039]
[1609509012112,0.82096635,29490.0,29489.0,2.83396645]
[1609509012318,0.82096635,29490.0,29489.0,3.43997645]
[1609509012540,0.82096635,29490.0,29489.0,4.68997645]
[1609509012745,0.82096635,29490.0,29489.0,4.85844457]
[1609509012945,0.82096635,29490.0,29489.0,3.60844457]
[1609509013336,0.82096635,29490.0,29489.0,4.28114457]
[1609509013543,0.90334307,29490.0,29489.0,4.28114457]
[1609509014142,0.90334307,29490.0,29489.0,4.24767645]
[1609509014541,0.90334307,29490.0,29489.0,3.98857039]
[1609509015142,0.90334307,29490.0,29489.0,4.21808039]
[1609509015544,0.82096635,29490.0,29489.0,4.21808039]
[1609509015843,0.82096635,29490.0,29489.0,4.44829645]
[1609509016038,0.82096635,29490.0,29489.0,4.50195645]
[1609509016276,0.82096635,29490.0,29489.0,4.37476039]
[1609509016647,0.72694302,29490.0,29489.0,4.50195645]
[1609509017512,0.72694302,29490.0,29489.0,4.67542457]
[1609509017914,0.72694302,29490.0,29489.0,4.64195645]
[1609509018223,0.72694302,29490.0,29489.0,4.50195645]
[1609509018425,0.73311613,29490.0,29489.0,4.62195645]
[1609509018625,0.72311613,29490.0,29489.0,4.62195645]
[1609509019024,0.68195743,29490.0,29489.0,4.62195645]
[1609509020629,0.68195743,29490.0,29489.0,4.49476039]
[1609509020933,0.68195743,29490.0,29489.0,3.21808039]
[1609509021236,0.68195743,29490.0,29489.0,2.98857039]
[1609509021436,0.7231032,29490.0,29489.0,2.85357039]
[1609509021952,0.7231032,29490.0,29489.0,2.86071896]
[1609509023853,0.68195743,29490.0,29489.0,2.86071896]
[1609509024462,0.68195743,29490.0,29489.0,3.96071896]
[1609509024661,0.71142992,29490.0,29489.0,4.67291502]
[1609509024855,0.71142992,29490.0,29489.0,5.21909502]
[1609509025263,0.67645406,29490.0,29489.0,5.21909502]
[1609509026457,0.67645406,29490.0,29489.0,3.38189896]
[1609509026657,0.67645406,29490.0,29489.0,2.99571896]
[1609509026864,0.6805689,29490.0,29489.0,2.99571896]
[1609509027061,0.6805689,29490.0,29489.0,3.09571896]
[1609509027460,0.67645406,29490.0,29489.0,3.09571896]
[1609509028277,0.67645406,29490.0,29489.0,3.49571896]
[1609509028480,0.67645406,29490.0,29489.0,4.09571896]
[1609509028983,0.67645406,29490.0,29489.0,3.08571896]
[1609509029182,0.67645406,29490.0,29489.0,4.08571896]
[1609509029481,0.67645406,29490.0,29489.0,4.46291502]
[1609509029686,0.67645406,29490.0,29489.0,2.98571896]
[1609509030083,0.71144334,29490.0,29489.0,2.98571896]
[1609509030586,0.71144334,29490.0,29489.0,3.08571896]
[1609509030781,0.71144334,29490.0,29489.0,2.98571896]
[1609509031186,0.80589995,29490.0,29489.0,3.08571896]
[1609509031482,0.80589995,29490.0,29489.0,2.98571896]
[1609509032040,0.80589995,29490.0,29489.0,3.08571896]
[1609509033247,0.80089995,29490.0,29489.0,3.08571896]
[1609509033443,0.80089995,29490.0,29489.0,2.94571896]
[1609509034143,0.80089995,29490.0,29489.0,2.84571896]
[1609509035150,0.80089995,29490.0,29489.0,2.94571896]
[1609509036244,0.80089995,29490.0,29489.0,2.94071896]
[1609509036649,0.80089995,29490.0,29489.0,2.84071896]
[1609509037277,0.88332193,29490.0,29489.0,2.84071896]
[1609509038074,0.87832193,29490.0,29489.0,2.84071896]
[1609509038971,0.60172193,29490.0,29489.0,2.94071896]
[1609509039379,0.51929995,29490.0,29489.0,3.07571896]
[1609509042593,0.51929995,29490.0,29489.0,3.20291502]
[1609509043001,0.51929995,29490.0,29489.0,3.07571896]
[1609509044100,0.51929995,29490.0,29489.0,3.30449896]
[1609509044699,0.51929995,29490.0,29489.0,3.43169502]
[1609509044904,0.51929995,29490.0,29489.0,3.48949502]
[1609509045101,0.51929995,29490.0,29489.0,3.36259896]
[1609509045699,0.51929995,29490.0,29489.0,2.14024857]
[1609509046111,0.51929995,29490.0,29489.0,2.08214857]
[1609509046701,0.51899995,29490.0,29489.0,2.08214857]
[1609509047423,0.67399995,29490.0,29489.0,2.08214857]
[1609509047621,0.51899995,29490.0,29489.0,2.08214857]
[1609509049244,0.51899995,29490.0,29489.0,2.08556181]
[1609509050947,0.51899995,29490.0,29489.0,3.08556181]
[1609509051148,0.51899995,29490.0,29489.0,2.08556181]
[1609509051549,0.51899995,29490.0,29489.0,2.21245787]
[1609509051855,0.51899995,29490.0,29489.0,2.08556181]
[1609509052661,0.51899995,29490.0,29489.0,3.08556181]
[1609509052860,0.51899995,29490.0,29489.0,3.21245787]
[1609509053462,0.51899995,29490.0,29489.0,3.08556181]
[1609509053662,0.51899995,29490.0,29489.0,2.08556181]
[1609509055968,0.51899995,29490.0,29489.0,2.08056181]
[1609509058484,0.51899995,29490.0,29489.0,1.94556181]
[1609509060493,0.51899995,29490.0,29489.0,2.07245787]
[1609509060993,0.51899995,29490.0,29489.0,1.94556181]
[1609509062412,0.51899995,29490.0,29489.0,1.94056181]
[1609509062615,0.72899995,29490.0,29489.0,1.94056181]
[1609509063215,0.72899995,29490.0,29489.0,2.59056181]
[1609509063414,0.51899995,29490.0,29489.0,2.59056181]
[1609509063916,0.51899995,29490.0,29489.0,1.94056181]
[1609509065321,0.51899995,29490.0,29489.0,3.04056181]
[1609509065521,0.51899995,29490.0,29489.0,3.17556181]
[1609509066620,0.51899995,29490.0,29489.0,3.04056181]
[1609509071245,0.51899995,29490.0,29489.0,2.94056181]
[1609509071642,0.51899995,29490.0,29489.0,3.04056181]
[1609509071845,0.74399995,29490.0,29489.0,2.94056181]
[1609509072144,0.74399995,29490.0,29489.0,3.04056181]
[1609509072945,0.74399995,29490.0,29489.0,2.94056181]
[1609509073248,0.74399995,29490.0,29489.0,3.04056181]
[1609509073646,0.74399995,29490.0,29489.0,2.94056181]
[1609509074866,0.74399995,29490.0,29489.0,2.94593939]
[1609509075069,0.74399995,29490.0,29489.0,3.04593939]
[1609509076168,0.51899995,29490.0,29489.0,3.04593939]
[1609509085484,0.51899995,29490.0,29489.0,3.18093939]
[1609509087092,0.51899995,29490.0,29489.0,3.04593939]
[1609509087591,0.60149502,29490.0,29489.0,3.04593939]
[1609509091517,0.60149502,29490.0,29489.0,2.94593939]
[1609509091716,0.82649502,29490.0,29489.0,2.94593939]
[1609509092207,0.74399995,29490.0,29489.0,2.94593939]
[1609509093302,0.51899995,29490.0,29489.0,2.94593939]
[1609509094210,0.60152512,29490.0,29489.0,2.94593939]
[1609509098136,0.59552512,29490.0,29489.0,2.94593939]
[1609509098536,0.81552512,29490.0,29489.0,2.94593939]
[1609509099135,0.73299995,29490.0,29489.0,2.94593939]
[1609509103360,0.51299995,29490.0,29489.0,2.94593939]
[1609509106715,0.5955311,29490.0,29489.0,2.94593939]
[1609509106913,0.8155311,29490.0,29489.0,2.94593939]
[1609509107553,0.5955311,29490.0,29489.0,2.94593939]
[1609509107743,0.5955311,29490.0,29489.0,3.04819072]
[1609509108042,0.5955311,29490.0,29489.0,2.94593939]
[1609509109947,0.8155311,29490.0,29489.0,2.94593939]
[1609509110452,0.73299995,29490.0,29489.0,2.94593939]
[1609509110853,0.70056995,29490.0,29489.0,2.94093939]
[1609509111054,0.48056995,29490.0,29489.0,2.94093939]
[1609509111457,0.47556995,29490.0,29489.0,2.94093939]
[1609509111655,0.55810018,29490.0,29489.0,2.94093939]
[1609509116185,0.55957991,29490.0,29489.0,2.94093939]
[1609509116384,0.72957991,29490.0,29489.0,2.94093939]
[1609509116886,0.91952991,29490.0,29489.0,2.94093939]
[1609509117386,0.83699968,29490.0,29489.0,2.94093939]
[1609509118205,0.47704968,29490.0,29489.0,2.94093939]
[1609509118805,0.55957893,29490.0,29489.0,2.94093939]
[1609509121609,0.45957893,29490.0,29489.0,2.94093939]
[1609509121909,0.45957893,29490.0,29489.0,3.07593939]
[1609509122383,0.45957893,29490.0,29489.0,2.94093939]
[1609509122782,0.37704968,29490.0,29489.0,2.94093939]
[1609509123790,0.45957979,29490.0,29489.0,2.94093939]
[1609509124389,0.37704968,29490.0,29489.0,2.94093939]
[1609509129130,0.56704968,29490.0,29489.0,2.94093939]
[1609509129323,2.59191362,29490.0,29489.0,2.94093939]
[1609509129527,2.95488262,29490.0,29489.0,1.11790369]
[1609509129925,3.44634839,29490.0,29489.0,1.11790369]
[1609509130124,3.77646761,29490.0,29489.0,1.11790369]
[1609509130325,5.89646761,29490.0,29489.0,1.11790369]
[1609509130523,5.56634839,29490.0,29489.0,1.11790369]
[1609509131524,5.06634839,29490.0,29489.0,1.11790369]
[1609509131721,4.82504747,29490.0,29489.0,1.11790369]
[1609509133847,6.82504747,29490.0,29489.0,1.11790369]
[1609509134044,6.49324445,29490.0,29489.0,1.11790369]
[1609509134849,6.48047645,29490.0,29489.0,1.11790369]
[1609509135347,5.89324445,29490.0,29489.0,1.11790369]
[1609509136449,6.22236778,29490.0,29489.0,1.11790369]
[1609509137049,5.89324445,29490.0,29489.0,1.11790369]
[1609509137312,6.22228265,29490.0,29489.0,1.11790369]
[1609509137614,5.89324445,29490.0,29489.0,1.11290369]
[1609509139121,6.49324445,29490.0,29489.0,1.11290369]
[1609509139725,7.60879261,29490.0,29489.0,1.11290369]
[1609509140521,7.6441594,29490.0,29489.0,0.70002296]
[1609509140723,7.31523155,29490.0,29489.0,0.70002296]
[1609509140920,7.38596554,29490.0,29489.0,0.70002296]
[1609509141226,6.79945079,29490.0,29489.0,0.67840531]
[1609509141421,7.36781543,29490.0,29489.0,0.69004841]
[1609509141626,4.96781543,29490.0,29489.0,1.841e-05]
[1609509141828,4.96781543,29490.0,29468.0,0.6777]